bitfinex-derivatives/quotes_SOLF0:USTF0_20250712
["timestamp","ask_amount","ask_price","bid_price","bid_amount"]
[1752333722977,3.38,159.3,159.28,3.56]
[1752333723170,3.38,159.3,159.26,227.35076896]
[1752333723171,6.45838165,159.29,159.26,230.91076896]
[1752333723372,6.45838165,159.29,159.26,227.35076896]
[1752333723577,6.45838165,159.29,159.28,3.56]
[1752333723974,3.38,159.28,159.23,3.56]
[1752333724174,541.9,159.35,159.23,3.56]
[1752333724175,6.45838165,159.25,159.23,3.56]
[1752333724481,6.45838165,159.25,159.24,3.56]
[1752333724777,3.38,159.24,159.2,3.56]
[1752333725176,3.38,159.24,159.2,9.8389]
[1752333725476,3.38,159.24,159.2,6.2789]
[1752333725779,3.38,159.23,159.22,3.56]
[1752333725976,6.45838165,159.23,159.22,3.56]
[1752333726172,3.07838165,159.25,159.22,3.56]
[1752333726372,6.45838165,159.27,159.22,3.56]
[1752333726571,3.07838165,159.29,159.23,3.07838165]
[1752333726775,3.07838165,159.29,159.28,3.56]
[1752333727078,3.38,159.28,159.23,3.07838165]
[1752333727271,3.07838165,159.29,159.24,3.56]
[1752333727468,6.45838165,159.29,159.24,3.56]
[1752333727875,6.45838165,159.29,159.22,3.07838165]
[1752333728074,3.07838165,159.29,159.28,3.56]
[1752333728469,6.45838165,159.29,159.28,3.56]
[1752333728673,3.07838165,159.31,159.22,3.07838165]
[1752333728880,3.07838165,159.31,159.3,3.56]
[1752333729479,3.07838165,159.33,159.26,3.07838165]
[1752333729779,6.45838165,159.33,159.31,3.56]
[1752333730172,3.38,159.42,159.31,3.56]
[1752333730377,542.14,159.43,159.31,3.56]
[1752333730378,6.45838165,159.36,159.31,3.56]
[1752333730581,3.38,159.35,159.28,3.07838165]
[1752333730885,3.38,159.35,159.29,3.56]
[1752333731174,3.38,159.35,159.32,6.2741]
[1752333731374,3.38,159.35,159.33,3.56]
[1752333731569,3.07838165,159.34,159.29,3.56]
[1752333731772,3.38,159.33,159.31,3.56]
[1752333733088,3.38,159.32,159.3,3.56]
[1752333733283,3.38,159.32,159.3,9.8352]
[1752333733482,8.56767203,159.34,159.32,3.56]
[1752333733683,3.38,159.33,159.25,5.14784311]
[1752333733984,3.38,159.33,159.29,6.2756]
[1752333734279,3.38,159.33,159.26,3.56]
[1752333734882,9.6541,159.33,159.3,3.42]
[1752333735082,6.2741,159.33,159.3,3.42]
[1752333735278,3.43,159.32,159.31,3.42]
[1752333735479,11.46147203,159.34,159.31,3.42]
[1752333735679,3.43,159.33,159.31,3.42]
[1752333736282,3.43,159.33,159.32,3.42]
[1752333736683,5.18767203,159.34,159.33,3.42]
[1752333737085,8.61767203,159.34,159.33,3.42]
[1752333737286,14.89137203,159.34,159.3,6.2752]
[1752333737485,14.89137203,159.34,159.32,3.42]
[1752333738188,8.61767203,159.34,159.32,3.42]
[1752333738886,8.61767203,159.34,159.33,3.42]
[1752333739190,0.03982892,159.34,159.33,3.42]
[1752333739484,3.46982892,159.34,159.33,3.42]
[1752333739788,9.74352892,159.34,159.33,3.42]
[1752333739988,3.46982892,159.34,159.33,3.42]
[1752333740190,0.03982892,159.34,159.33,3.42]
[1752333742785,0.03982892,159.34,159.26,3.42]
[1752333742988,8.57784311,159.43,159.34,3.42]
[1752333743194,3.43,159.43,159.36,3.42]
[1752333743389,8.57784311,159.45,159.36,3.42]
[1752333743586,3.43,159.45,159.43,3.42]
[1752333743989,3.43,159.44,159.37,5.14784311]
[1752333744187,1.09193599,159.47,159.35,5.14784311]
[1752333744491,5.14784311,159.48,159.4,3.42]
[1752333744693,6.269,159.46,159.42,6.2703]
[1752333744993,3.43,159.43,159.35,3.42]
[1752333745389,9.7004,159.43,159.38,6.2718]
[1752333745590,3.43,159.41,159.4,3.42]
[1752333745796,9.701,159.41,159.4,3.42]
[1752333746399,3.43,159.41,159.33,3.42]
[1752333746894,6.2717,159.4,159.36,3.42]
[1752333747092,3.43,159.4,159.36,3.42]
[1752333747488,3.43,159.39,159.37,3.42]
[1752333748089,6.2721,159.38,159.37,3.42]
[1752333748298,5.14784311,159.41,159.37,3.42]
[1752333748495,8.57784311,159.41,159.37,3.42]
[1752333748697,5.14784311,159.43,159.37,3.42]
[1752333748903,5.14784311,159.43,159.4,3.42]
[1752333749102,5.14784311,159.43,159.41,3.42]
[1752333749792,14.84804311,159.43,159.41,3.42]
[1752333750401,3.43,159.43,159.41,3.42]
[1752333750698,3.43,159.42,159.41,3.42]
[1752333752095,6.2712,159.41,159.37,6.2723]
[1752333752300,9.7012,159.41,159.39,3.42]
[1752333752996,3.43,159.4,159.37,3.42]
[1752333753197,3.43,159.39,159.31,5.14784311]
[1752333753397,3.43,159.39,159.38,3.42]
[1752333753792,3.43,159.4,159.38,3.42]
[1752333754003,3.43,159.42,159.33,5.14784311]
[1752333754198,3.43,159.42,159.41,3.42]
[1752333754506,3.43,159.41,159.38,3.42]
[1752333754704,3.43,159.41,159.4,0.03958114]
[1752333755402,14.84884311,159.41,159.4,0.03958114]
[1752333758303,6.2725,159.38,159.35,3.42]
[1752333758505,5.14784311,159.38,159.35,3.42]
[1752333758704,186.26,159.4,159.29,5.14784311]
[1752333758705,6.2734,159.35,159.29,3.42]
[1752333758910,5.14784311,159.36,159.29,3.42]
[1752333759599,3.43,159.35,159.31,6.2749]
[1752333759906,5.14784311,159.34,159.27,3.42]
[1752333760106,11.42164311,159.34,159.3,6.2752]
[1752333760301,14.85164311,159.34,159.32,3.42]
[1752333762814,8.57784311,159.34,159.32,3.42]
[1752333763012,0.03972188,159.35,159.33,3.42]
[1752333763416,0.03972188,159.35,159.33,9.6939]
[1752333763706,0.03972188,159.35,159.34,3.42]
[1752333764910,9.66302188,159.35,159.34,3.42]
[1752333765111,9.66302188,159.35,159.28,5.14784311]
[1752333765307,9.66302188,159.35,159.26,5.24106076]
[1752333765308,5.14784311,159.34,159.32,3.4]
[1752333765712,8.49784311,159.34,159.32,3.4]
[1752333766012,8.49784311,159.34,159.33,3.4]
[1752333766511,6.31332188,159.35,159.26,5.14784311]
[1752333766512,0.03972188,159.35,159.34,3.4]
[1752333766710,3.38972188,159.35,159.32,6.2742]
[1752333766910,8.49784311,159.34,159.26,3.4]
[1752333767212,14.77174311,159.34,159.3,6.2749]
[1752333767408,14.77174311,159.34,159.32,3.4]
[1752333767614,6.2749,159.32,159.28,6.2759]
[1752333767915,6.2749,159.32,159.3,3.4]
[1752333768117,9.6249,159.32,159.3,3.4]
[1752333768312,3.35,159.31,159.3,3.4]
[1752333768919,9.6249,159.31,159.3,3.4]
[1752333769111,3.35,159.3,159.29,3.4]
[1752333769314,3.35,159.3,159.28,3.4]
[1752333770514,3.35,159.3,159.29,3.4]
[1752333771017,3.35,159.3,159.28,3.4]
[1752333771213,9.6254,159.3,159.28,3.4]
[1752333771415,3.35,159.29,159.28,3.4]
[1752333773922,9.6257,159.29,159.28,3.4]
[1752333774821,3.35,159.29,159.28,3.4]
[1752333775021,3.35,159.29,159.22,3.4]
[1752333775221,8.49784311,159.32,159.23,3.4]
[1752333775423,8.49784311,159.32,159.25,3.4]
[1752333775617,3.35,159.34,159.27,3.4]
[1752333775823,9.6239,159.34,159.31,3.4]
[1752333776023,3.35,159.33,159.32,3.4]
[1752333777323,3.35,159.32,159.31,3.4]
[1752333777623,5.14784311,159.34,159.32,3.4]
[1752333777624,8.49784311,159.34,159.32,3.4]
[1752333777824,3.35,159.33,159.32,3.4]
[1752333778728,5.14784311,159.34,159.33,3.4]
[1752333779027,5.18743263,159.34,159.33,3.4]
[1752333779723,8.53743263,159.34,159.33,3.4]
[1752333780930,3.12815514,159.34,159.33,3.4]
[1752333781129,3.08856562,159.38,159.33,3.4]
[1752333781330,3.35,159.39,159.33,3.4]
[1752333783419,3.35,159.38,159.36,3.4]
[1752333783623,3.35,159.38,159.35,3.4]
[1752333783928,3.35,159.38,159.37,3.4]
[1752333784327,6.2724,159.38,159.35,3.4]
[1752333784627,5.14422575,159.36,159.34,0.03969725]
[1752333784825,3.35,159.35,159.34,0.03969725]
[1752333785432,3.35,159.35,159.34,3.43969725]
[1752333785631,3.35,159.35,159.34,0.03969725]
[1752333786229,3.35,159.35,159.34,3.43969725]
[1752333786634,9.6233,159.35,159.34,0.03969725]
[1752333786931,3.35,159.35,159.34,3.43969725]
[1752333787723,5.14422575,159.36,159.34,3.43969725]
[1752333787924,5.14422575,159.36,159.35,3.4]
[1752333788129,8.49422575,159.36,159.35,3.4]
[1752333789127,186.26,159.4,159.35,3.4]
[1752333789128,5.14422575,159.38,159.35,3.4]
[1752333789331,3.35,159.38,159.36,3.4]
[1752333789528,3.35,159.37,159.36,3.4]
[1752333790228,194.75422575,159.4,159.36,3.4]
[1752333790426,3.35,159.39,159.36,3.4]
[1752333790721,3.35,159.39,159.35,3.4]
[1752333790923,8.49422575,159.38,159.35,3.4]
[1752333791133,3.35,159.37,159.35,3.4]
[1752333791318,3.35,159.37,159.36,3.4]
[1752333791930,11.41662575,159.38,159.34,6.31329725]
[1752333792135,3.35,159.39,159.34,0.03969725]
[1752333792323,191.40422575,159.4,159.36,3.4]
[1752333792530,6.2725,159.37,159.34,0.03969725]
[1752333792721,3.35,159.38,159.36,3.4]
[1752333793232,9.6224,159.38,159.36,3.4]
[1752333793627,9.6224,159.38,159.34,6.31339725]
[1752333793926,9.6224,159.38,159.35,3.4]
[1752333794320,3.35,159.38,159.35,9.6732]
[1752333794634,9.6218,159.39,159.36,3.4]
[1752333794934,191.40422575,159.4,159.36,3.4]
[1752333795229,186.26,159.4,159.36,3.4]
[1752333795430,192.5314,159.4,159.36,9.6728]
[1752333795634,192.5314,159.4,159.36,6.2728]
[1752333795823,196.2114,159.4,159.37,3.65]
[1752333796231,196.2114,159.4,159.38,3.65]
[1752333796837,196.2114,159.4,159.39,3.65]
[1752333797533,3.68,159.39,159.31,3.65]
[1752333797730,3.68,159.37,159.31,3.65]
[1752333798736,3.68,159.37,159.34,3.65]
[1752333798737,3.68,159.36,159.34,3.65]
[1752333799033,3.68,159.36,159.35,3.65]
[1752333800234,3.68,159.37,159.36,3.65]
[1752333800931,5.14422575,159.38,159.35,6.2733]
[1752333801127,3.68,159.39,159.35,6.2733]
[1752333801332,3.68,159.38,159.37,3.65]
[1752333801529,9.9522,159.38,159.37,3.65]
[1752333801937,191.40422575,159.4,159.37,3.65]
[1752333802136,195.08422575,159.4,159.37,3.65]
[1752333802535,186.26,159.4,159.37,3.65]
[1752333802836,10.42422575,159.42,159.37,3.65]
[1752333802837,191.08,159.42,159.37,3.65]
[1752333803029,191.08,159.42,159.37,3.68977114]
[1752333803336,3.68,159.41,159.37,9.96227114]
[1752333803537,3.68,159.41,159.38,3.65]
[1752333804538,3.68,159.41,159.4,3.65]
[1752333804740,3.68,159.41,159.4,10.17980503]
[1752333805242,9.951,159.41,159.4,10.17980503]
[1752333806236,6.271,159.41,159.4,10.17980503]
[1752333806442,193.6707,159.42,159.41,3.65]
[1752333806632,193.6707,159.42,159.41,10.17980503]
[1752333807432,187.4,159.42,159.41,10.17980503]
[1752333808738,1.6,159.42,159.41,10.17980503]
[1752333808944,185.72,159.45,159.42,3.65]
[1752333809142,191.9892,159.46,159.44,3.65]
[1752333809334,195.6692,159.46,159.45,10.17980503]
[1752333809840,195.6692,159.46,159.45,4.88788925]
[1752333810643,6.2702,159.43,159.42,3.65]
[1752333810840,189.38,159.43,159.35,5.24106076]
[1752333811145,3.68,159.41,159.37,3.65]
[1752333811345,9.9512,159.41,159.38,3.65]
[1752333811744,6.2712,159.41,159.38,3.65]
[1752333811946,6.2716,159.4,159.38,3.65]
[1752333812151,6.2716,159.4,159.36,6.2729]
[1752333812352,6.2716,159.4,159.39,3.65]
[1752333812950,15.09395456,159.4,159.39,3.65]
[1752333813157,3.68,159.39,159.38,3.65]
[1752333813755,11.41395456,159.4,159.38,3.65]
[1752333813957,6.2712,159.41,159.33,3.65]
[1752333814750,6.2712,159.41,159.34,5.14235456]
[1752333814951,6.2714,159.4,159.35,3.65]
[1752333815153,6.2714,159.4,159.38,3.65]
[1752333815658,5.14235456,159.42,159.38,3.65]
[1752333815858,3.68,159.39,159.36,3.65]
[1752333816160,3.68,159.37,159.36,3.65]
[1752333816360,3.68,159.37,159.3,3.65]
[1752333816754,6.2734,159.35,159.31,6.2748]
[1752333816954,3.68,159.37,159.3,3.65]
[1752333817360,8.82235456,159.36,159.3,3.65]
[1752333818061,6.2734,159.35,159.31,6.2748]
[1752333818361,8.82235456,159.36,159.28,10.38341532]
[1752333818362,8.82235456,159.36,159.32,3.65]
[1752333818956,5.14235456,159.36,159.32,3.65]
[1752333819159,3.68,159.35,159.32,3.65]
[1752333819656,5.14235456,159.36,159.27,5.2627553]
[1752333819860,8.82235456,159.36,159.28,3.65]
[1752333820059,8.82235456,159.36,159.31,6.2747]
[1752333820060,6.2734,159.35,159.31,6.2747]
[1752333820360,3.68,159.34,159.33,3.65]
[1752333820662,9.9538,159.34,159.33,3.65]
[1752333821457,3.68,159.34,159.33,3.65]
[1752333822564,3.68,159.31,159.3,3.65]
[1752333823161,3.68,159.31,159.26,5.26842755]
[1752333823357,3.68,159.3,159.28,3.65]
[1752333823557,3.68,159.3,159.29,3.65]
[1752333825761,3.68,159.3,159.27,6.2762]
[1752333825965,3.68,159.3,159.28,3.47]
[1752333826167,3.56,159.28,159.27,3.47]
[1752333827270,3.09070074,159.29,159.27,3.47]
[1752333827672,6.65070074,159.29,159.28,3.47]
[1752333828368,3.56,159.29,159.28,3.47]
[1752333828572,6.65070074,159.29,159.28,3.47]
[1752333828769,3.09070074,159.29,159.28,3.47]
[1752333829863,6.65070074,159.29,159.28,3.47]
[1752333830065,3.56,159.28,159.27,3.47]
[1752333830266,3.09070074,159.29,159.26,0.03958254]
[1752333830473,6.65070074,159.29,159.28,3.47]
[1752333833275,3.56,159.28,159.26,3.50958254]
[1752333833479,6.65070074,159.27,159.26,0.03958254]
[1752333833970,12.92720074,159.27,159.26,0.03958254]
[1752333834472,561.05,159.32,159.26,0.03958254]
[1752333834473,6.2755,159.3,159.26,3.50958254]
[1752333834777,3.56,159.27,159.26,3.50958254]
[1752333835170,3.09070074,159.29,159.27,3.47]
[1752333835577,3.09070074,159.29,159.27,9.7462]
[1752333835771,3.09070074,159.29,159.27,3.47]
[1752333836179,3.09070074,159.29,159.27,6.2763]
[1752333836376,3.09070074,159.29,159.28,3.47]
[1752333836886,3.09070074,159.29,159.27,6.2763]
[1752333836887,195.3753,159.3,159.29,3.47]
[1752333837180,9.8353,159.3,159.29,3.47]
[1752333837474,545.8,159.32,159.29,3.47]
[1752333837681,542.24,159.32,159.29,3.47]
[1752333837877,185.5,159.33,159.29,3.47]
[1752333838076,191.7742,159.33,159.29,3.47]
[1752333838379,189.06,159.33,159.3,3.47]
[1752333838576,185.5,159.33,159.3,3.47]
[1752333838774,3.56,159.36,159.34,3.47]
[1752333838974,185.5,159.37,159.34,3.47]
[1752333839170,189.06,159.37,159.34,3.47]
[1752333839579,6.273,159.36,159.34,3.47]
[1752333839878,3.56,159.36,159.31,3.47]
[1752333840078,185.5,159.37,159.31,3.47]
[1752333840079,3.56,159.35,159.31,3.47]
[1752333840270,9.8337,159.35,159.31,3.47]
[1752333840473,3.56,159.33,159.31,3.47]
[1752333840677,3.56,159.33,159.24,5.15003521]
[1752333840978,9.8348,159.32,159.28,3.47]
[1752333841179,5.15003521,159.34,159.28,3.47]
[1752333841378,3.56,159.33,159.28,3.47]
[1752333841877,3.56,159.36,159.29,3.47]
[1752333842278,6.2731,159.36,159.32,6.2743]
[1752333842473,6.2731,159.36,159.33,3.47]
[1752333842679,185.5,159.37,159.33,3.47]
[1752333842887,191.7729,159.37,159.33,9.7439]
[1752333843077,191.7729,159.37,159.34,3.47]
[1752333843272,185.5,159.37,159.34,3.47]
[1752333843480,189.06,159.37,159.34,3.47]
[1752333843783,3.56,159.36,159.32,3.47]
[1752333844174,185.5,159.37,159.32,3.47]
[1752333844175,6.2738,159.34,159.32,3.47]
[1752333844571,3.56,159.36,159.32,3.47]
[1752333844781,6.2734,159.35,159.32,3.47]
[1752333845783,3.56,159.35,159.32,3.47]
[1752333845978,3.56,159.34,159.33,3.47]
[1752333846180,3.56,159.35,159.28,5.15003521]
[1752333846481,9.8333,159.35,159.31,3.47]
[1752333846883,9.8338,159.34,159.31,3.47]
[1752333847386,6.2734,159.35,159.31,6.2749]
[1752333847683,8.71003521,159.36,159.32,3.47]
[1752333847884,185.5,159.37,159.32,3.47]
[1752333848085,191.7726,159.37,159.31,3.47]
[1752333848485,185.5,159.37,159.31,3.47]
[1752333848682,185.5,159.37,159.33,3.47]
[1752333849286,185.5,159.37,159.35,3.47]
[1752333849287,191.7726,159.37,159.35,3.47]
[1752333850087,185.5,159.37,159.35,9.7433]
[1752333850387,185.5,159.37,159.35,6.2733]
[1752333850686,191.7726,159.37,159.36,3.47]
[1752333851281,195.3326,159.37,159.36,3.47]
[1752333851584,191.7726,159.37,159.36,3.47]
[1752333851782,195.3326,159.37,159.36,3.47]
[1752333851986,6.2734,159.35,159.34,3.47]
[1752333852186,3.56,159.36,159.35,3.47]
[1752333852389,9.8331,159.36,159.35,3.47]
[1752333853588,3.56,159.36,159.35,3.47]
[1752333855991,191.7727,159.37,159.35,3.47]
[1752333856289,188.99,159.37,159.36,3.4]
[1752333857282,188.99,159.37,159.34,3.4]
[1752333857283,6.273,159.36,159.34,3.4]
[1752333857489,9.763,159.36,159.35,3.4]
[1752333857889,9.763,159.36,159.29,5.15003521]
[1752333857890,185.5,159.37,159.29,5.15003521]
[1752333858087,188.99,159.37,159.36,3.4]
[1752333858390,195.2627,159.37,159.36,3.4]
[1752333859188,3.49,159.35,159.34,3.4]
[1752333859592,3.49,159.36,159.31,3.4]
[1752333859793,185.5,159.37,159.31,3.4]
[1752333859994,195.2627,159.37,159.34,3.4]
[1752333860990,548.8371822,159.4,159.34,3.4]
[1752333861190,185.22,159.39,159.35,3.4]
[1752333861885,5.25410408,159.44,159.36,3.0871822]
[1752333861886,3.49,159.44,159.36,3.0871822]
[1752333862085,6.5771822,159.44,159.37,3.4]
[1752333862286,6.271,159.41,159.38,6.272]
[1752333862589,6.271,159.41,159.39,3.4]
[1752333863192,6.2707,159.42,159.39,9.6717]
[1752333863492,6.2707,159.42,159.4,3.4]
[1752333863887,191.4904,159.43,159.38,3.0871822]
[1752333864092,3.49,159.41,159.35,3.4]
[1752333864495,3.49,159.41,159.36,6.2727]
[1752333864694,3.49,159.41,159.36,0.03982059]
[1752333864896,3.49,159.41,159.37,3.4]
[1752333865195,6.2716,159.4,159.37,6.2723]
[1752333865396,3.49,159.39,159.38,3.4]
[1752333865595,3.0871822,159.4,159.38,3.4]
[1752333865797,6.5771822,159.4,159.39,3.4]
[1752333866996,3.49,159.4,159.39,3.4]
[1752333867301,3.49,159.39,159.37,3.4]
[1752333867595,3.0871822,159.4,159.38,3.4]
[1752333867791,3.0871822,159.4,159.39,3.4]
[1752333867997,6.5771822,159.4,159.39,3.4]
[1752333868298,6.5771822,159.42,159.4,3.4]
[1752333868499,3.49,159.41,159.4,3.4]
[1752333868696,9.7612,159.41,159.37,6.2724]
[1752333868903,6.5771822,159.4,159.39,3.4]
[1752333869198,6.5771822,159.4,159.33,3.4]
[1752333869199,3.49,159.39,159.33,3.4]
[1752333869997,9.7618,159.39,159.33,3.4]
[1752333870500,9.7618,159.39,159.35,6.273]
[1752333870797,9.7618,159.39,159.36,3.4]
[1752333871296,9.7618,159.39,159.36,6.2729]
[1752333871500,9.7622,159.38,159.37,3.4]
[1752333871700,3.49,159.37,159.32,6.2745]
[1752333871996,3.0871822,159.36,159.34,3.4]
[1752333872201,6.5771822,159.36,159.35,3.4]
[1752333872900,6.5771822,159.36,159.33,9.71384349]
[1752333873105,3.49,159.35,159.34,3.4]
[1752333874700,3.49,159.35,159.34,9.6737]
[1752333876002,3.0871822,159.36,159.34,9.6737]
[1752333876206,6.5771822,159.36,159.35,3.4]
[1752333877097,6.5771822,159.36,159.33,6.31384349]
[1752333877299,3.49,159.35,159.34,3.4]
[1752333877494,9.3602822,159.36,159.33,0.03984349]
[1752333877698,6.5771822,159.34,159.33,0.03984349]
[1752333879103,12.8508822,159.34,159.33,0.03984349]
[1752333879302,6.5771822,159.34,159.33,0.03984349]
[1752333881406,3.0871822,159.34,159.33,3.43984349]
[1752333881595,6.5771822,159.36,159.33,3.43984349]
[1752333881797,12.8501822,159.36,159.35,3.4]
[1752333882197,3.49,159.35,159.33,0.03984349]
[1752333882403,6.5771822,159.34,159.33,3.43984349]
[1752333883208,3.0871822,159.34,159.33,3.43984349]
[1752333883510,6.5771822,159.36,159.35,3.4]
[1752333883902,9.7634,159.35,159.34,3.4]
[1752333884102,3.0871822,159.36,159.33,0.03984349]
[1752333884306,3.49,159.35,159.33,3.43984349]
[1752333884608,3.49,159.34,159.33,3.43984349]
[1752333886910,9.7637,159.34,159.33,3.43984349]
[1752333887412,12.8508822,159.34,159.33,3.43984349]
[1752333887609,6.5771822,159.34,159.33,3.43984349]
[1752333888313,12.8508822,159.34,159.33,3.43984349]
[1752333889711,12.8508822,159.34,159.33,0.03984349]
[1752333897512,3.33,159.3,159.27,3.53]
[1752333897711,3.0871822,159.28,159.27,3.53]
[1752333898013,6.4171822,159.28,159.23,5.26842755]
[1752333898313,3.33,159.23,159.22,3.53]
[1752333898513,3.33,159.23,159.18,3.53]
[1752333898713,6.4171822,159.2,159.19,3.53]
[1752333899220,6.4171822,159.2,159.11,7.0003857]
[1752333899221,3.33,159.19,159.17,3.53]
[1752333899516,3.33,159.17,159.15,3.53]
[1752333899719,3.0871822,159.16,159.15,3.53]
[1752333900317,6.4171822,159.16,159.15,3.53]
[1752333901610,0.03979893,159.17,159.16,6.2808]
[1752333901819,0.03979893,159.17,159.16,9.8108]
[1752333902215,3.0871822,159.22,159.16,3.53]
[1752333902420,6.4171822,159.22,159.2,3.53]
[1752333902919,6.4171822,159.22,159.21,3.53]
[1752333903925,191.3571822,159.24,159.22,3.53]
[1752333904216,3.33,159.23,159.16,3.53]
[1752333904522,6.4171822,159.2,159.16,3.53]
[1752333904725,6.4171822,159.2,159.18,3.53]
[1752333905216,3.33,159.18,159.16,3.53]
[1752333905423,6.4171822,159.18,159.11,3.0871822]
[1752333905720,6.4171822,159.18,159.17,3.53]
[1752333906122,3.33,159.17,159.15,3.56957564]
[1752333906423,6.4171822,159.16,159.15,3.56957564]
[1752333906619,6.4171822,159.16,159.13,3.53]
[1752333906828,6.4171822,159.16,159.14,3.53]
[1752333907414,6.4171822,159.16,159.09,3.53]
[1752333907623,6.4171822,159.16,159.13,6.2816]
[1752333908127,3.33,159.15,159.13,3.53]
[1752333908327,3.33,159.13,159.09,3.53]
[1752333908530,6.4171822,159.12,159.09,3.53]
[1752333908727,6.4171822,159.12,159.11,3.53]
[1752333909226,3.33,159.11,159.09,3.53]
[1752333909427,3.0871822,159.1,159.09,3.53]
[1752333909624,3.33,159.08,159.05,3.53]
[1752333909929,3.0871822,159.09,159.08,3.53]
[1752333911926,3.33,159.08,158.99,3.53]
[1752333912428,9.3707822,159.09,159.02,3.53]
[1752333912628,12.7007822,159.09,159.02,3.53]
[1752333912820,6.4171822,159.09,159.02,3.53]
[1752333913019,9.614,159.08,159.05,3.53]
[1752333913221,3.33,159.08,159.01,3.0871822]
[1752333913427,3.33,159.08,159.07,3.53]
[1752333913732,3.0871822,159.08,158.98,3.53]
[1752333913927,3.0871822,159.04,158.96,542.56]
[1752333914128,3.0871822,159.04,158.98,3.53]
[1752333914726,6.4971822,159.02,158.99,3.48]
[1752333915032,561.52,159.11,158.87,19.5847857]
[1752333915033,6.4971822,159.0,158.97,3.48]
[1752333915232,3.0871822,158.98,158.91,3.0871822]
[1752333915426,3.0871822,159.04,158.95,3.0871822]
[1752333915427,3.41,159.04,158.95,3.0871822]
[1752333915622,3.1005991,159.04,158.95,3.1005991]
[1752333915826,6.5105991,159.05,158.97,3.1005991]
[1752333916033,6.5105991,159.05,159.03,6.2858]
[1752333916333,3.41,159.05,159.04,3.48]
[1752333916530,6.5105991,159.07,159.04,6.2853]
[1752333916732,3.0989235,159.07,159.05,3.48]
[1752333916925,3.41,159.06,159.01,3.48]
[1752333917126,9.3849235,159.03,159.01,3.48]
[1752333917332,3.41,159.02,159.01,3.48]
[1752333917732,3.0989235,159.04,159.01,3.48]
[1752333917933,6.5089235,159.04,159.02,3.48]
[1752333918235,3.41,159.03,158.96,3.0989235]
[1752333918435,3.41,159.03,159.01,3.48]
[1752333918635,12.7947235,159.04,159.0,6.2868]
[1752333918935,3.41,159.03,159.01,3.48]
[1752333919133,9.6963,159.02,158.98,6.2876]
[1752333919333,12.7952235,159.02,159.0,3.48]
[1752333919536,6.5089235,159.02,159.0,3.48]
[1752333920438,3.41,159.01,158.92,3.0989235]
[1752333920640,3.0989235,158.99,158.93,3.48]
[1752333921133,3.0989235,158.99,158.98,3.48]
[1752333921639,6.5089235,158.99,158.97,3.48]
[1752333921835,6.5089235,158.99,158.98,3.48]
[1752333922339,3.41,159.03,158.95,3.48]
[1752333922532,6.5089235,159.03,158.96,3.0989235]
[1752333922727,3.41,159.0,158.98,3.48]
[1752333922928,9.3859235,159.01,158.92,3.48]
[1752333922929,3.41,159.01,158.92,3.48]
[1752333923329,3.41,158.99,158.97,3.48]